Cogmind - Beta 14 @@@ ROGUE MODE // 2024.10.10 @ 12:24:06 Player: AkimboAoki Result: Destroyed by B-99 Colossus with Multirail Performance ------------- Evolutions (9) 4500 Regions Visited (13) 2600 Robots Destroyed (215) 1075 Value Destroyed (9575) 9575 Prototype IDs (16) 320 Alien Tech Used (0) 0 Bonus (3139) 3139 TOTAL SCORE: 21209 Bonus ------- High Alert Combat Kills 1112 Follower Combat Kills 213 Met R17 at Cetus 500 Met R17 at Research 2000 Friendly Fire -686 Cogmind --------- Core Integrity 0/1600 Matter 31/300 Energy 100/100 System Corruption 2% Temperature Cool (0) Movement Core (250) Ox4 Location -1/Access Parts ------- > --- POWER (2) -------- (None) > --- PROPULSION (6) --- (None) > --- UTILITY (11) ----- Advanced Targeting Computer Advanced Target Analyzer Component Analysis Suite > --- WEAPON (6) ------- Point Singularity Launcher > --- INVENTORY (5) ---- Light Quantum Reactor Myomer Leg Myomer Leg Biometal Leg Advanced Weapon Cycler Peak State ------------ > --- POWER ------------ Quantum Reactor Quantum Reactor > --- PROPULSION ------- High-density Centrium Leg High-density Centrium Leg High-density Centrium Leg High-density Centrium Leg High-density Centrium Leg High-density Centrium Leg > --- UTILITY ---------- Advanced Heat Sink Advanced Heat Sink Medium Storage Unit Advanced Targeting Computer Armor Integrity Analyzer Matter Filter Improved Reaction Control System Centrium Medium Armor Plating Centrium Medium Armor Plating Centrium Medium Armor Plating Centrium Medium Armor Plating > --- WEAPON ----------- Heavy Machine Gun Railgun Advanced KE Penetrator Advanced KE Penetrator Compact Mass Driver Compact Mass Driver > --- INVENTORY -------- Particle Reactor Light Quantum Reactor Myomer Leg Myomer Leg Myomer Leg Advanced Weapon Cycler Heavy Armor Plating Heavy Machine Gun Advanced Datajack [Rating: 193] Favorites ----------- Power Quantum Reactor Engine Heavy Deuterium Engine Reactor Quantum Reactor Propulsion Carbon-fiber Leg Treads Centrium Heavy Treads Leg Carbon-fiber Leg Wheel Compact Wheel Utility Centrium Medium Armor Plating Device Weapon Cycler Storage Medium Storage Unit Processor Improved Targeting Computer Hackware Hacking Suite Protection Centrium Medium Armor Plating Weapon Advanced KE Penetrator Energy Gun Heavy Dispersion Rifle Ballistic Gun Advanced KE Penetrator Ballistic Cannon Compact Mass Driver Launcher Point Singularity Launcher Special Weapon Mining Laser Impact Weapon Great Maul Slashing Weapon Phasing Sabre Build | -11 -10 -9 -9 -8 -7 -6 -5 -5 -5 -4 -3 -2 -1 ------- Run | Yrd Mat Mat Min Mat Fac Fac Fac Ext Cet Fac Res Res Acc Slots Evolved 18 | . . 2 . 2 2 2 2 . . 2 2 2 2 Power 1 | . . . . . . . . . . . . 1 . Propulsion 4 | . . 1 . 1 . . . . . . 2 . . Utility 9 | . . . . 1 2 2 1 . . 2 . . 1 Weapon 4 | . . 1 . . . . 1 . . . . 1 1 Parts Attached 205 | 6 3 8 3 20 11 18 8 36 17 7 16 10 42 Power 18 | 1 . 3 . 2 . 1 . 3 1 . . 1 6 Engine 9 | 1 . 3 . 2 . 1 . 2 . . . . . Core . | . . . . . . . . . . . . . . Reactor 9 | . . . . . . . . 1 1 . . 1 6 Propulsion 56 | 2 . 3 1 11 3 7 1 10 4 1 1 6 6 Treads 4 | . . . . . . . . . 2 1 1 . . Leg 51 | 2 . 3 1 11 3 7 . 10 2 . . 6 6 Wheel 1 | . . . . . . . 1 . . . . . . Hover . | . . . . . . . . . . . . . . Flight . | . . . . . . . . . . . . . . Utility 70 | 1 1 1 . 2 5 5 6 12 6 3 13 2 13 Device 35 | . . . . 1 3 2 3 1 1 3 11 1 9 Storage 5 | 1 . 1 . . . . . 1 1 . 1 . . Processor 14 | . 1 . . 1 . 3 2 4 . . 1 . 2 Hackware 3 | . . . . . . . 1 1 1 . . . . Protection 13 | . . . . . 2 . . 5 3 . . 1 2 Artifact . | . . . . . . . . . . . . . . Weapon 61 | 2 2 1 2 5 3 5 1 11 6 3 2 1 17 Energy Gun 11 | . . . . . . . 1 . 1 . . . 9 Energy Cannon . | . . . . . . . . . . . . . . Ballistic Gun 35 | 2 2 1 . 3 3 3 . 6 5 3 1 . 6 Ballistic Cannon 7 | . . . . 1 . 1 . 2 . . 1 1 1 Launcher 1 | . . . . . . . . . . . . . 1 Special Weapon 1 | . . . 1 . . . . . . . . . . Impact Weapon 3 | . . . 1 1 . 1 . . . . . . . Slashing Weapon 3 | . . . . . . . . 3 . . . . . Piercing Weapon . | . . . . . . . . . . . . . . Special Melee Weapon . | . . . . . . . . . . . . . . Unidentified Prototypes 16 | . . 1 . 2 . . 1 1 4 . 3 2 2 Corrupted Parts 4 | . . . . . . . . 4 . . . . . System Corruption 13 | . . . . . . . . 13 . . . . . Parts Lost 90 | . . . . 2 4 22 6 4 10 . . . 42 Power 7 | . . . . . . 2 . . . . . . 5 Propulsion 23 | . . . . 1 1 6 1 1 5 . . . 8 Utility 39 | . . . . . 2 8 4 3 5 . . . 17 Weapon 21 | . . . . 1 1 6 1 . . . . . 12 Highest Loss Streak 20 | . . . . 1 4 12 6 2 8 . . . 20 To Critical Strikes 5 | . . . . . . 2 . . 2 . . . 1 Average Slot Usage (%) 88 | . 97 99 100 99 100 84 16 87 87 85 84 92 80 Engine 4 | . 14 10 11 9 7 5 . 2 . . . . . Reactor 2 | . . . . . . . . 2 5 5 4 8 6 Treads 2 | . . . . . . . . . 9 10 14 5 . Leg 20 | . 28 33 33 36 30 19 4 17 2 . . 13 20 Device 9 | . . . . 9 15 16 1 1 4 11 11 13 14 Storage 5 | . 14 11 11 9 7 5 . 4 4 . 3 4 3 Processor 11 | . 11 11 11 9 7 18 2 22 12 10 9 13 10 Hackware 2 | . . . . . . . 3 2 9 10 7 . . Protection 6 | . . . . . 6 . . 9 10 15 14 13 7 Ballistic Gun 14 | . 28 33 22 11 13 10 . 13 17 14 14 13 10 Ballistic Cannon 1 | . . . . 6 1 . . . . . . 4 5 Impact Weapon 3 | . . . 7 9 7 4 . . . . . . . Slashing Weapon 1 | . . . . . . . . 4 5 5 4 4 . Peak Build Rating 193 | 6 11 16 17 35 47 55 23 80 125 134 160 182 193 Average Rating 73 | 4 10 14 16 27 42 44 9 65 110 129 152 174 151 On Entrance 58 | . 6 11 16 17 35 43 5 6 78 125 133 158 181 Naked Turns 85 | . . . . . . 85 . . . . . . . Heaviest Build 120 | 14 16 27 27 35 42 39 9 62 67 74 82 107 120 Greatest Support 240 | 20 20 30 33 62 70 67 18 75 160 160 240 240 192 Greatest Overweight (x) 4 | 1 . . . . . 2 . 2 2 . . 3 4 Average Overweight (x) . | . . . . . . . . . . . . . . Largest Inventory Capacity 10 | 8 8 10 10 10 10 10 5 10 10 5 10 10 10 Average Capacity 9 | 7 8 9 10 10 10 9 5 9 9 5 9 10 9 Most Carried 10 | 2 8 10 10 10 10 10 5 10 10 5 10 10 10 Average Carried 8 | 1 6 8 9 9 9 7 4 9 9 4 7 9 8 Final Capacity 10 | 8 8 10 10 10 10 5 5 10 5 5 10 10 5 Final Carried 10 | 2 8 10 10 10 7 5 5 10 5 4 10 10 5 Class Distribution -------------------- 50% | Mutant 17% | Scavenger-Gunner 14% | Scavenger-Tank 7% | Scavenger-Executioner 6% | Gunner 4% | Scavenger-Mutant Dominant Class ---------------- Mutant | -10/Materials Gunner | -9/Materials Mutant | -9/Mines Mutant | -8/Materials Mutant | -7/Factory Mutant | -6/Factory Mutant | -5/Factory Scavenger-Mutant | -5/Extension Scavenger-Gunner | -5/Cetus Scavenger-Tank | -4/Factory Scavenger-Gunner | -3/Research Scavenger-Gunner | -2/Research Scavenger-Executioner | -1/Access Resources | -11 -10 -9 -9 -8 -7 -6 -5 -5 -5 -4 -3 -2 -1 ----------- Run | Yrd Mat Mat Min Mat Fac Fac Fac Ext Cet Fac Res Res Acc Matter Collected 7197 | 175 31 498 286 862 452 720 . 1113 397 . 587 . 2076 Remotely . | . . . . . . . . . . . . . . Salvage Created 9983 | . 31 498 262 1143 749 537 . 1892 558 157 1083 . 3073 Parts 440 | . 4 30 12 50 33 24 . 87 28 9 41 . 122 Haulers Intercepted 12 | . . 3 . 6 . . . . . . 2 . 1 Recyclers Shooed 9 | . . . 2 1 . . . 2 . . 1 . 3 Parts Field Recycled . | . . . . . . . . . . . . . . Retrieved Matter . | . . . . . . . . . . . . . . Parts Self-Destructed . | . . . . . . . . . . . . . . Prevented . | . . . . . . . . . . . . . . Kills | -11 -10 -9 -9 -8 -7 -6 -5 -5 -5 -4 -3 -2 -1 ------- Run | Yrd Mat Mat Min Mat Fac Fac Fac Ext Cet Fac Res Res Acc Combat Hostiles Destroyed 159 | . 1 10 3 22 20 10 . 28 8 2 11 . 44 Melee 14 | . . . . . 2 1 . 11 . . . . . Guns 123 | . 1 10 3 17 16 7 . 15 8 2 11 . 33 Cannons 22 | . . . . 5 2 2 . 2 . . . . 11 Classes Destroyed 20 | . 1 2 5 2 2 3 . 2 . . 2 . 1 Worker 15 | . . . 2 3 1 3 . . . . 3 . 3 Builder 8 | . . . 1 . . . . 2 . 1 . . 4 Tunneler 4 | . . . 2 . . 2 . . . . . . . Hauler 12 | . . 3 . 6 . . . . . . 2 . 1 Recycler 7 | . . . 2 1 . . . 2 . . 1 . 1 Mechanic 1 | . . . . . . 1 . . . . . . . Operator 1 | . . . . . . 1 . . . . . . . Watcher 7 | . . . . 3 1 1 . 1 1 . . . . Swarmer 28 | . . . 3 6 . . . 9 . . 5 . 5 Saboteur 1 | . . . . . . . . . . . . . 1 Grunt 55 | . 1 8 . 7 12 6 . 2 . . 3 . 16 Brawler 2 | . . . . . . 1 . . . . . . 1 Duelist 2 | . . . . . . . . . . . . . 2 Sentry 28 | . . 2 . 7 2 . . 6 . . 2 . 9 Demolisher 1 | . . . . . . . . . . . 1 . . Hunter 8 | . . . . 2 . 1 . . . 2 . . 3 Programmer 13 | . . . . . 5 2 . . . . . . 6 Heavy 1 | . . . . . 1 . . . . . . . . Behemoth 3 | . . . . . . . . 2 . . . . 1 Cetus Guard 8 | . . . . . . . . . 8 . . . . Thug 3 | . . . . . . . . 3 . . . . . Butcher 4 | . . . . . . . . 4 . . . . . Guerrilla 2 | . . . . . . . . 2 . . . . . Revision 1 | . . . . . . . . . . . 1 . . Best Kill Streak 9 | . 1 6 3 6 7 7 . 4 4 3 6 . 9 Combat Bots Only 9 | . 1 5 3 4 7 4 . 4 4 2 4 . 9 Max Kills in Single Turn 3 | . 1 1 1 1 1 1 . 2 2 2 3 . 3 Gunslinging 1 | . . . . . . . . . 1 . 1 . . Exploded . | . . . . . . . . . . . . . . Melee 1 | . . . . . 1 1 . 1 . . . . . Uniques/NPCs Destroyed . | . . . . . . . . . . . . . . Combat | -11 -10 -9 -9 -8 -7 -6 -5 -5 -5 -4 -3 -2 -1 -------- Run | Yrd Mat Mat Min Mat Fac Fac Fac Ext Cet Fac Res Res Acc Hostile Shots Fired 1597 | . 2 34 9 91 158 151 65 119 100 23 14 . 831 Missed 562 | . 1 4 2 36 54 36 33 40 22 2 3 . 329 Damage Taken 20398 | . 12 395 54 757 1360 2184 689 1447 2068 369 312 . 10751 Core 3086 | . . 58 . 118 139 504 350 143 100 17 46 . 1611 Absorbed by Shields 438 | . . . . . . . . 226 . 84 40 . 88 Reduced by Siege Mode 52 | . . . . . . . . . 23 29 . . . Core Remaining (%) 81 | 100 100 . 85 78 80 40 . . 40 98 96 100 . Volleys Fired 441 | . 6 32 27 57 55 41 . 54 30 7 22 . 110 Largest 6 | . 2 3 2 2 2 3 . 3 3 3 3 . 6 Hottest 564 | . 46 69 100 67 67 108 . 114 105 105 105 . 564 Shots Fired 1286 | . 12 92 31 114 110 87 . 151 89 21 66 . 513 Gun 1059 | . 12 92 8 81 104 74 . 141 89 21 66 . 371 Cannon 200 | . . . . 33 6 13 . 10 . . . . 138 Launcher 4 | . . . . . . . . . . . . . 4 Special 23 | . . . 23 . . . . . . . . . . Kinetic 1225 | . 12 92 8 114 110 87 . 151 89 21 66 . 475 Thermal 57 | . . . 23 . . . . . . . . . 34 Explosive 4 | . . . . . . . . . . . . . 4 Electromagnetic . | . . . . . . . . . . . . . . Robot Hit Streak 14 | . 4 9 4 14 13 8 . 14 8 11 8 . 14 Robot Miss Streak 5 | . 5 4 4 5 5 5 . 3 3 1 2 . 5 Penetration Max 2 | . . . . . . . . 1 1 1 1 . 2 Secondary Targets 16 | . . 2 . . 1 . . 3 3 1 2 . 4 Max Gunslinging Chain 1 | . . 1 . . 1 . . 1 1 1 1 . 1 Shots Hit Robots 937 | . 4 69 13 112 106 74 . 137 60 17 42 . 303 Core Hits 482 | . 2 29 4 74 83 44 . 58 27 9 27 . 125 Critical Kills 28 | . . . . . . 1 . 2 5 1 10 . 9 Critical Parts Destroyed 47 | . . . 3 4 1 3 . 4 4 2 4 . 22 Critical Strikes 99 | . . . 3 4 1 5 . 13 11 3 18 . 41 Destroy 76 | . . . . 1 . 2 . 7 11 3 18 . 34 Blast 8 | . . . . . . 1 . . . . . . 7 Smash 9 | . . . 3 3 1 2 . . . . . . . Sever 6 | . . . . . . . . 6 . . . . . Melee Attacks 85 | . . . 8 20 9 10 . 37 . . . . 1 Impact 47 | . . . 8 20 9 10 . . . . . . . Slashing 38 | . . . . . . . . 37 . . . . 1 Piercing . | . . . . . . . . . . . . . . Sneak Attacks 46 | . . . 8 12 3 4 . 19 . . . . . Combat Hostiles . | . . . . . . . . . . . . . . Follow-up Attacks . | . . . . . . . . . . . . . . Damage Inflicted 28834 | . 64 1044 574 2425 2772 2140 9 4748 1868 422 1976 . 10792 Guns 19898 | . 64 1044 71 979 2090 1217 . 2766 1868 422 1976 . 7401 Cannons 4447 | . . . . 455 174 343 . 150 . . . . 3325 Explosions . | . . . . . . . . . . . . . . Melee 4465 | . . . 503 991 508 577 . 1832 . . . . 54 Ramming 24 | . . . . . . 3 9 . . . . . 12 Kinetic 23475 | . 64 1044 71 1434 2264 1560 . 2916 1868 422 1976 . 9856 Thermal 870 | . . . . . . . . . . . . . 870 Explosive . | . . . . . . . . . . . . . . Electromagnetic . | . . . . . . . . . . . . . . Impact 2579 | . . . 503 991 508 577 . . . . . . . Slashing 1886 | . . . . . . . . 1832 . . . . 54 Piercing . | . . . . . . . . . . . . . . Highest Corruption 25 | . . . . . . 23 7 25 25 . . . 2 Average Corruption 11 | . . . . . . 8 5 11 25 . . . 1 Corruption Purged . | . . . . . . . . . . . . . . Corruption Blocked . | . . . . . . . . . . . . . . Effects 122 | . . . . . . 24 1 48 41 . . . 8 Message Errors 29 | . . . . . . 5 1 11 11 . . . 1 Matter Fused 27 | . . . . . . 5 . 12 7 . . . 3 Heat Flow Errors 17 | . . . . . . 6 . 6 5 . . . . Energy Discharges 14 | . . . . . . 2 . 6 5 . . . 1 Parts Rejected 2 | . . . . . . . . 1 . . . . 1 Parts Fused 3 | . . . . . . 1 . 1 1 . . . . Data Loss (minor) 13 | . . . . . . 1 . 6 6 . . . . Data Loss (major) 6 | . . . . . . 1 . 2 1 . . . 2 Misfires 4 | . . . . . . . . 2 2 . . . . Alerts 1 | . . . . . . 1 . . . . . . . Misdirections 1 | . . . . . . 1 . . . . . . . Weapon Failures 5 | . . . . . . 1 . 1 3 . . . . Overload Shots . | . . . . . . . . . . . . . . Overflow Damage 1450 | . . . 318 397 100 304 . 211 . . . . 120 Projectiles 120 | . . . . . . . . . . . . . 120 Explosions . | . . . . . . . . . . . . . . Melee 1330 | . . . 318 397 100 304 . 211 . . . . . Knockbacks 53 | . . . 2 19 8 4 . . . . . . 20 Impact 8 | . . . 2 4 1 1 . . . . . . . Kinetic 40 | . . . . 15 7 2 . . . . . . 16 Secondary 5 | . . . . . . 1 . . . . . . 4 Self-Inflicted Damage . | . . . . . . . . . . . . . . Shots . | . . . . . . . . . . . . . . Rammed . | . . . . . . . . . . . . . . Targets Rammed 7 | . . . . . . 2 2 . . . . . 3 Kicked 7 | . . . . . . 2 2 . . . . . 3 Crushed . | . . . . . . . . . . . . . . Highest Temperature 578 | . . 218 140 98 80 500 . 277 294 . 10 . 578 Average Temperature 111 | . . 36 67 29 16 169 . 104 141 . 7 . 173 Received Heat Transfer 2873 | . 6 216 . 207 336 863 156 291 198 . 32 . 568 Effects 31 | . . . . . . 3 . 4 . . . . 24 Shutdowns 11 | . . . . . . 1 . . . . . . 10 Energy Bleed 5 | . . . . . . 1 . 1 . . . . 3 Interference 8 | . . . . . . . . 3 . . . . 5 Matter Decay 1 | . . . . . . . . . . . . . 1 Short Circuit 4 | . . . . . . 1 . . . . . . 3 Damage (minor) 1 | . . . . . . . . . . . . . 1 Damage (major) 1 | . . . . . . . . . . . . . 1 Siege Activations 2 | . . . . . . . . . 1 1 . . . Total Turns 50 | . . . . . . . . . 30 20 . . . Longest Duration 30 | . . . . . . . . . 30 20 . . . Robots Corrupted 10 | . . . 2 6 . 2 . . . . . . . Combat Hostiles . | . . . . . . . . . . . . . . Parts Fried 23 | . . . 7 8 . 5 . 2 . . . . 1 Impact Corruptions 32 | . . . 10 11 3 8 . . . . . . . Robots Melted . | . . . . . . . . . . . . . . Combat Hostiles . | . . . . . . . . . . . . . . Parts Melted 1 | . . . . . . . . . . . . . 1 Heat Transferred 1073 | . . . . . . . . . . . . . 1073 Parts Sabotaged . | . . . . . . . . . . . . . . Parts Stolen . | . . . . . . . . . . . . . . Parts Stripped . | . . . . . . . . . . . . . . Power Chain Reactions . | . . . . . . . . . . . . . . Alert | -11 -10 -9 -9 -8 -7 -6 -5 -5 -5 -4 -3 -2 -1 ------- Run | Yrd Mat Mat Min Mat Fac Fac Fac Ext Cet Fac Res Res Acc Peak Influence 1311 | . 35 386 100 499 278 198 131 662 397 278 187 30 1311 Initial 370 | . . 14 72 . 188 84 96 39 370 202 40 30 17 Average 226 | . 25 155 59 331 129 65 101 353 330 195 69 30 596 Maximum Alert Level 4 | . . 1 . 2 1 . . 2 1 1 . . 4 Low Security (%) 59 | 100 100 66 100 15 89 100 100 32 3 7 100 100 14 Level 1 22 | . . 33 . 44 10 . . 20 96 92 . . 20 Level 2 11 | . . . . 40 . . . 47 . . . . 17 Level 3 5 | . . . . . . . . . . . . . 42 Level 4 . | . . . . . . . . . . . . . 5 Level 5 . | . . . . . . . . . . . . . . High Security . | . . . . . . . . . . . . . . Max Security . | . . . . . . . . . . . . . . Squads Dispatched 37 | . 1 . 1 . 8 4 1 1 . 1 4 . 16 Investigation 7 | . . . 1 . . 1 . 1 . . 2 . 2 Extermination 9 | . . . . . 4 2 1 . . . . . 2 Reinforcement 11 | . 1 . . . 4 1 . . . 1 2 . 2 Assault 2 | . . . . . . . . . . . . . 2 Garrison 8 | . . . . . . . . . . . . . 8 Intercept . | . . . . . . . . . . . . . . Searches Triggered . | . . . . . . . . . . . . . . Construction Impeded 2 | . . . . . 1 . . . . . . . 1 Haulers Reinforced 3 | . . . . . 1 . . . . . 2 . . Active Scanning Responses . | . . . . . . . . . . . . . . Cargo Convoy Interrupts . | . . . . . . . . . . . . . . Stealth | -11 -10 -9 -9 -8 -7 -6 -5 -5 -5 -4 -3 -2 -1 --------- Run | Yrd Mat Mat Min Mat Fac Fac Fac Ext Cet Fac Res Res Acc Distress Signals 23 | . 1 3 . 3 1 . . 3 3 . 3 . 6 Communications Jammed . | . . . . . . . . . . . . . . Distress Signals . | . . . . . . . . . . . . . . Times Spotted 298 | . 6 17 4 35 31 26 12 39 11 3 25 . 89 Peak Tracking Total 16 | . 3 6 3 6 4 10 12 6 5 2 6 . 16 Tactical Retreats 26 | . . 2 1 2 . 4 1 5 1 . . . 10 Traps | -11 -10 -9 -9 -8 -7 -6 -5 -5 -5 -4 -3 -2 -1 ------- Run | Yrd Mat Mat Min Mat Fac Fac Fac Ext Cet Fac Res Res Acc Traps Triggered 11 | . . . . . . 4 . 5 . 2 . . . Indirectly . | . . . . . . . . . . . . . . Trap Hack Attempts . | . . . . . . . . . . . . . . Triggered . | . . . . . . . . . . . . . . Disarmed . | . . . . . . . . . . . . . . Reprogrammed . | . . . . . . . . . . . . . . Reused . | . . . . . . . . . . . . . . Traps Extracted . | . . . . . . . . . . . . . . Installed . | . . . . . . . . . . . . . . Triggered . | . . . . . . . . . . . . . . Machines | -11 -10 -9 -9 -8 -7 -6 -5 -5 -5 -4 -3 -2 -1 ---------- Run | Yrd Mat Mat Min Mat Fac Fac Fac Ext Cet Fac Res Res Acc Machines Disabled 5 | . . . . . . . . 1 2 . . . 2 Max in Single Turn 1 | . . . . . . . . 1 1 . . . 1 Garrison Access 2 | . . . . . . . 1 . . . . . 1 Machines Repaired . | . . . . . . . . . . . . . . Machines Dismantled . | . . . . . . . . . . . . . . Machines Sabotaged . | . . . . . . . . . . . . . . Overloaded Fab Kills . | . . . . . . . . . . . . . . Hacking | -11 -10 -9 -9 -8 -7 -6 -5 -5 -5 -4 -3 -2 -1 --------- Run | Yrd Mat Mat Min Mat Fac Fac Fac Ext Cet Fac Res Res Acc Machines Accessed 38 | . 1 1 1 6 9 3 2 5 3 . 2 . 5 Terminals 28 | . 1 . . 6 6 2 1 5 3 . 1 . 3 Fabricators . | . . . . . . . . . . . . . . Repair Stations . | . . . . . . . . . . . . . . Recycling Units 4 | . . 1 . . 2 1 . . . . . . . Scanalyzers . | . . . . . . . . . . . . . . Garrison Access 5 | . . . . . 1 . 1 . . . 1 . 2 Total Hacks 81 | . 2 4 1 16 14 8 3 12 8 . 3 . 10 Successful 38 | . . 3 1 8 6 5 2 6 5 . . . 2 Failed 43 | . 2 1 . 8 8 3 1 6 3 . 3 . 8 Catastrophic 9 | . . . . 1 4 . . 1 1 . 2 . . Database Lockouts . | . . . . . . . . . . . . . . Manual 37 | . 2 2 . 13 9 3 . 7 . . . . 1 Terminals 64 | . 2 . . 16 11 6 1 12 8 . 2 . 6 Fabricators . | . . . . . . . . . . . . . . Repair Stations . | . . . . . . . . . . . . . . Recycling Units 8 | . . 4 . . 2 2 . . . . . . . Scanalyzers . | . . . . . . . . . . . . . . Garrison Access 8 | . . . . . 1 . 2 . . . 1 . 4 Terminal Hacks 20 | . . . 1 4 3 2 1 3 5 . . . 1 Record 8 | . . . . . 1 1 . 1 4 . . . 1 Robot Analysis 1 | . . . . 1 . . . . . . . . . Open Door 5 | . . . 1 . . . 1 2 1 . . . . Level Access Points 1 | . . . . . . 1 . . . . . . . Branch Access Points 2 | . . . . 1 1 . . . . . . . . Terminal Index 2 | . . . . 1 1 . . . . . . . . Locate Traps 1 | . . . . 1 . . . . . . . . . Fabricator Hacks . | . . . . . . . . . . . . . . Repair Station Hacks . | . . . . . . . . . . . . . . Recycling Unit Hacks 4 | . . 2 . . . 2 . . . . . . . Process 2 | . . 1 . . . 1 . . . . . . . Report Inventory 1 | . . 1 . . . . . . . . . . . Retrieve Matter 1 | . . . . . . 1 . . . . . . . Scanalyzer . | . . . . . . . . . . . . . . Garrison Access Hacks 1 | . . . . . . . 1 . . . . . . Seal Access 1 | . . . . . . . 1 . . . . . . Unauthorized Hacks 13 | . . 1 . 4 3 1 . 3 . . . . 1 Terminals 11 | . . . . 4 3 1 . 3 . . . . . Assimilate 1 | . . . . . 1 . . . . . . . . Botnet 8 | . . . . 3 2 1 . 2 . . . . . Operators 2 | . . . . 1 . . . 1 . . . . . Fabricators . | . . . . . . . . . . . . . . Repair Stations . | . . . . . . . . . . . . . . Recycling Units 1 | . . 1 . . . . . . . . . . . Mask 1 | . . 1 . . . . . . . . . . . Scanalyzers . | . . . . . . . . . . . . . . Garrison Access 1 | . . . . . . . . . . . . . 1 Jam 1 | . . . . . . . . . . . . . 1 Data Cores Recovered 1 | . . . . . . 1 . . . . . . . Used . | . . . . . . . . . . . . . . Hacking Detections 31 | . 1 1 . 6 8 3 1 3 1 . 2 . 5 Full Trace Events 1 | . . . . . . . . . . . . . 1 Feedback Events . | . . . . . . . . . . . . . . Feedback Blocked . | . . . . . . . . . . . . . . Robot Schematics Acquired . | . . . . . . . . . . . . . . Robots Built . | . . . . . . . . . . . . . . Authchips . | . . . . . . . . . . . . . . Time . | . . . . . . . . . . . . . . Total Robot Build Rating . | . . . . . . . . . . . . . . Part Schematics Acquired . | . . . . . . . . . . . . . . Parts Built . | . . . . . . . . . . . . . . Authchips . | . . . . . . . . . . . . . . Time . | . . . . . . . . . . . . . . Total Part Build Rating . | . . . . . . . . . . . . . . Parts Repaired . | . . . . . . . . . . . . . . Time . | . . . . . . . . . . . . . . Parts Recycled . | . . . . . . . . . . . . . . Recycled Matter 17 | . . 11 . . . 6 . . . . . . . Retrieved Matter 6 | . . . . . . 6 . . . . . . . Retrieved Components . | . . . . . . . . . . . . . . Parts Scanalyzed . | . . . . . . . . . . . . . . Part Schematics Acquired . | . . . . . . . . . . . . . . Parts Damaged . | . . . . . . . . . . . . . . Bothacking | -11 -10 -9 -9 -8 -7 -6 -5 -5 -5 -4 -3 -2 -1 ------------ Run | Yrd Mat Mat Min Mat Fac Fac Fac Ext Cet Fac Res Res Acc Used RIF Installer . | . . . . . . . . . . . . . . Robots Hacked . | . . . . . . . . . . . . . . Non-combat . | . . . . . . . . . . . . . . Combat . | . . . . . . . . . . . . . . Robot Hacks Applied . | . . . . . . . . . . . . . . Relay Couplers Released 3 | . . . . . . . . . . . . . 3 Machine Destruction 3 | . . . . . . . . . . . . . 3 Fabnet Peak Effective % . | . . . . . . . . . . . . . . Robots Rewired . | . . . . . . . . . . . . . . Allies Hacked . | . . . . . . . . . . . . . . Hacks Repelled . | . . . . . . . . . . . . . . Allies | -11 -10 -9 -9 -8 -7 -6 -5 -5 -5 -4 -3 -2 -1 -------- Run | Yrd Mat Mat Min Mat Fac Fac Fac Ext Cet Fac Res Res Acc Total Allies 6 | . . . . . 1 . . 2 . . 3 . . Largest Group 3 | . . . . . 1 . . 1 . . 3 . . Highest-Rated Group 159 | . . . . . 10 . . 159 . . 138 . . Highest-Rated Ally 159 | . . . . . 10 . . 159 . . 46 . . Total Orders 2 | . . . . . 2 . . . . . . . . STAY 1 | . . . . . 1 . . . . . . . . FOLLOW 1 | . . . . . 1 . . . . . . . . Ally Attacks 58 | . . . . . . . . 32 . . 26 . . Total Damage 1466 | . . . . . . . . 976 . . 490 . . Kills 11 | . . . . . . . . 9 . . 2 . . Allies Corrupted 1 | . . . . . . . . 1 . . . . . Allies Melted . | . . . . . . . . . . . . . . Intel | -11 -10 -9 -9 -8 -7 -6 -5 -5 -5 -4 -3 -2 -1 ------- Run | Yrd Mat Mat Min Mat Fac Fac Fac Ext Cet Fac Res Res Acc Robot Analysis Total 1 | . . . . 1 . . . . . . . . . Derelict Logs Recovered 2 | . . . 2 . . . . . . . . . . Drone Launches . | . . . . . . . . . . . . . . Drone Recoveries . | . . . . . . . . . . . . . . Exploration | -11 -10 -9 -9 -8 -7 -6 -5 -5 -5 -4 -3 -2 -1 ------------- Run | Yrd Mat Mat Min Mat Fac Fac Fac Ext Cet Fac Res Res Acc Turns Passed 11665 | 57 207 407 829 1437 2007 1053 391 1178 775 433 1376 134 1381 Spaces Moved 7236 | 37 141 196 570 871 1364 739 341 649 372 246 757 82 871 Core 557 | 1 . . . . . 168 58 32 . . . . 298 Treads 1386 | . . . . . . . . . 352 246 757 31 . Legs 5161 | 36 141 196 570 871 1364 571 151 617 20 . . 51 573 Wheels 132 | . . . . . . . 132 . . . . . . Hover . | . . . . . . . . . . . . . . Flight . | . . . . . . . . . . . . . . Fastest Speed 50 | 50 120 120 120 120 122 50 50 50 120 160 160 120 50 Average Speed 123 | 127 120 120 120 121 122 113 100 116 160 160 160 139 96 Slowest Speed 330 | 190 120 120 120 122 126 260 120 150 260 160 160 330 250 Overloaded Moves . | . . . . . . . . . . . . . . Propulsion Burnouts . | . . . . . . . . . . . . . . Robots Hopped . | . . . . . . . . . . . . . . Cave-ins Triggered . | . . . . . . . . . . . . . . Exploration Rate (%) 37 | 3 27 20 100 63 30 25 7 78 95 9 28 2 31 Regions Visited 13 Branch Regions 3 Pre-discovered Areas 2 | . . . 2 . . . . . . . . . . Known Exits Taken 1 | . . . . . . 1 . . . . . . . Unknown Exits Taken 12 | 1 1 1 1 1 1 . 1 1 1 1 1 1 . Scrap Searched 3 | . . . 3 . . . . . . . . . . Spaces Dug 39 | . . . 15 . . . . . . . . . 24 Terrain Destroyed 151 | . . . 15 . . . . 21 8 3 17 . 87 Melee . | . . . . . . . . . . . . . . Projectile 125 | . . . 15 . . . . 21 8 3 17 . 61 AOE 24 | . . . . . . . . . . . . . 24 Terrain Rammed . | . . . . . . . . . . . . . . Walls Destroyed . | . . . . . . . . . . . . . . Machines Disabled . | . . . . . . . . . . . . . . Actions | -11 -10 -9 -9 -8 -7 -6 -5 -5 -5 -4 -3 -2 -1 --------- Run | Yrd Mat Mat Min Mat Fac Fac Fac Ext Cet Fac Res Res Acc Total 8925 | 44 170 305 626 1147 1601 870 386 900 488 268 877 101 1142 Wait 660 | . 3 50 12 134 138 48 33 67 46 7 50 . 72 Move 7223 | 36 140 195 569 870 1363 738 340 648 371 245 756 81 871 Hop . | . . . . . . . . . . . . . . Pick Up 152 | 2 11 10 3 19 12 9 1 30 12 . 19 4 20 Fast Attach 74 | 6 1 . . 5 1 6 7 13 5 6 1 5 18 Attach 74 | . . 3 . 4 5 10 1 15 6 1 7 4 18 Detach 19 | . . . . . . 1 1 5 3 . 3 1 5 Swap 57 | . 2 5 3 11 5 2 . 8 6 . 8 1 6 Drop 128 | . 7 10 4 27 13 3 1 18 9 2 11 5 18 Fire 441 | . 6 32 27 57 55 41 . 54 30 7 22 . 110 Melee 85 | . . . 8 20 9 10 . 37 . . . . 1 Ram . | . . . . . . . . . . . . . . Kick 7 | . . . . . . 2 2 . . . . . 3 Crush . | . . . . . . . . . . . . . . Escape Stasis 5 | . . . . . . . . 5 . . . . . Rewire . | . . . . . . . . . . . . . . Trap . | . . . . . . . . . . . . . . Miscellaneous . | . . . . . . . . . . . . . . Route ------- -11/Scrapyard -10/Materials (discovered 2 exits: *Mat / [*Min]) -9/Materials -9/Mines (discovered 2 exits: *Mat x2) -8/Materials (discovered 2 exits: *Fac / *Sto) -7/Factory (discovered 3 exits: *Fac / Low x2) -6/Factory (discovered 4 exits: *Fac x4) -5/Factory -5/Extension (discovered 2 exits: [*Fac] / *Cet) -5/Cetus (discovered 3 exits: [*Fac x2] / [*Arc]) -4/Factory -3/Research -2/Research -1/Access History --------- Turn | Location | Event 33 | -11/Scrapyard | Discovered new exit (range 15) 58 | -11/Scrapyard | Entered Materials 170 | -10/Materials | Discovered new exit (range 10) 209 | -10/Materials | Discovered new exit (range 15) 265 | -10/Materials | Entered another Materials area 265 | -9/Materials | Evolved 2 slots: Propulsion x1, Weapon x1 529 | -9/Materials | Discovered new exit (range 13) 561 | -9/Materials | Build established: Gunner 672 | -9/Materials | Entered Mines 686 | -9/Mines | Met a Derelict bent on vengeance 691 | -9/Mines | Learned 4 Materials zone layouts 1009 | -9/Mines | Met a Derelict shopkeep closing up shop 1131 | -9/Mines | Discovered new exit (range 9) 1240 | -9/Mines | Learned location of Storage (-8) 1243 | -9/Mines | Build established: Mutant 1317 | -9/Mines | Discovered new exit (range 8) 1501 | -9/Mines | Entered Materials 1501 | -8/Materials | Evolved 2 slots: Propulsion x1, Utility x1 2521 | -8/Materials | Discovered new exit (range 7) 2540 | -8/Materials | Discovered new exit (range 8) 2754 | -8/Materials | Identified exit to Storage 2938 | -8/Materials | Entered Factory 2938 | -7/Factory | Evolved 2 slots: Utility x2 3572 | -7/Factory | Identified exit to Lower Caves 4838 | -7/Factory | Discovered new exit (range 11) 4945 | -7/Factory | Entered another Factory area 4945 | -6/Factory | Evolved 2 slots: Utility x2 4952 | -6/Factory | Destroyed 7 combat bots 4976 | -6/Factory | Lost 4 parts (1n2u1w) 5758 | -6/Factory | Lost 9 parts (1p3n2u3w) 5833 | -6/Factory | Spotted B-75 Beast 5884 | -6/Factory | System corruption reached 10% 5890 | -6/Factory | Core integrity fell below 50% 5917 | -6/Factory | Lost 12 parts (1p2n6u3w) 5918 | -6/Factory | Identified exit to Factory 5998 | -6/Factory | Entered another Factory area 5998 | -5/Factory | Evolved 2 slots: Utility x1, Weapon x1 6387 | -5/Factory | Discovered new exit (range 6) 6389 | -5/Factory | Entered Extension 6413 | -5/Extension | Lost 6 parts (1n4u1w) 6624 | -5/Extension | Rescued A7 6715 | -5/Extension | Build established: Scavenger-Mutant 6851 | -5/Extension | System corruption reached 10% 6914 | -5/Extension | Disrupted transfer network 6914 | -5/Extension | Spotted B-75 Beast 6933 | -5/Extension | Spotted B-75 Beast 6943 | -5/Extension | Destroyed B-75 Beast 6975 | -5/Extension | Destroyed B-75 Beast 6993 | -5/Extension | Extracted ID and sensor layout for unrecognized location from A7's data core 7246 | -5/Extension | Rescued a captive Derelict 7451 | -5/Extension | Build established: Scavenger-Tank 7545 | -5/Extension | Discovered new exit (range 10) 7546 | -5/Extension | Discovered new exit (range 6) 7567 | -5/Extension | Entered Cetus 7583 | -5/Cetus | Spotted Cetus Guard 7583 | -5/Cetus | Spotted Cetus Guard 7586 | -5/Cetus | Spotted Cetus Guard 7588 | -5/Cetus | Spotted Cetus Guard 7600 | -5/Cetus | Destroyed Cetus Guard 7603 | -5/Cetus | Core integrity fell below 50% 7623 | -5/Cetus | Destroyed Cetus Guard 7633 | -5/Cetus | Destroyed Cetus Guard 7642 | -5/Cetus | Destroyed Cetus Guard 7665 | -5/Cetus | Lost 8 parts (5n3u) 7751 | -5/Cetus | Discovered new exit (range 15) 7885 | -5/Cetus | Discovered new exit (range 15) 7889 | -5/Cetus | Build established: Scavenger-Gunner 7920 | -5/Cetus | Spotted Cetus Guard 7920 | -5/Cetus | Spotted Cetus Guard 8249 | -5/Cetus | Spotted Cetus Guard 8252 | -5/Cetus | Spotted Cetus Guard 8254 | -5/Cetus | Destroyed Cetus Guard 8257 | -5/Cetus | Destroyed Cetus Guard 8257 | -5/Cetus | Destroyed Cetus Guard 8277 | -5/Cetus | Destroyed Cetus Guard 8301 | -5/Cetus | Discovered new exit (range 15) 8312 | -5/Cetus | Met Revision 17 8317 | -5/Cetus | Security sweep announced 8342 | -5/Cetus | Entered Factory 8342 | -4/Factory | Evolved 2 slots: Utility x2 8599 | -4/Factory | Build established: Scavenger-Tank 8761 | -4/Factory | Discovered new exit (range 7) 8775 | -4/Factory | Entered Research 8775 | -3/Research | Evolved 2 slots: Propulsion x2 8975 | -3/Research | Revision forces began assault on 0b10 9046 | -3/Research | Met up with Revision 17++ 9077 | -3/Research | Found Gamma Bomb Array 9475 | -3/Research | Research terminal network offline 9640 | -3/Research | Spotted Striker 9657 | -3/Research | Spotted Striker 9660 | -3/Research | Spotted Striker 9696 | -3/Research | Lost 5 allies 9751 | -3/Research | Build established: Scavenger-Gunner 10099 | -3/Research | Discovered new exit (range 12) 10151 | -3/Research | Entered another Research area 10151 | -2/Research | Evolved 2 slots: Power x1, Weapon x1 10252 | -2/Research | Discovered new exit (range 11) 10285 | -2/Research | Entered Access 10285 | -1/Access | Evolved 2 slots: Utility x1, Weapon x1 10669 | -1/Access | Spotted B-99 Colossus 10719 | -1/Access | Destroyed B-99 Colossus 10771 | -1/Access | Build established: Scavenger-Executioner 10908 | -1/Access | Garrison activated, responded to threat 11035 | -1/Access | First assault squad dispatched 11087 | -1/Access | Lost 3 parts (3u) 11099 | -1/Access | Destroyed 9 combat bots 11358 | -1/Access | Lost 8 parts (2p1n3u2w) 11448 | -1/Access | Core integrity fell below 50% 11496 | -1/Access | Lost 20 parts (3p7n4u6w) 11546 | -1/Access | Core integrity fell below 20% 11636 | -1/Access | Spotted B-99 Colossus 11641 | -1/Access | Spotted B-99 Colossus 11649 | -1/Access | Found Prototype Launcher 11649 | -1/Access | Identified Point Singularity Launcher 11659 | -1/Access | Spotted B-99 Colossus 11666 | -1/Access | Destroyed by B-99 Colossus with Multirail Last Messages --------------- 11590_ Connecting with Terminal... 11594_ Acquired 73 matter. 11643_ System corrupted: Matter fused (-5). 11643_ Fabricator disabled. 11643_ Slug penetrates Fabricator. 11643_ Slug penetrates Wall. 11648_ Wall collapses. 11649_ Acquired Prototype Launcher. 11649_ Identified Point Singularity Launcher. 11651_ Anti-Orbital Battery disabled. 11657_ The unstable cave ceiling collapses. 11659_ Slug penetrates Wall. 11661_ The unstable cave ceiling collapses. 11662_ Slug penetrates Wall. 11662_ Penetrated by Slug. 11662_ Slug penetrates Wall. 11664_ B-99 Colossus activates siege mode. 11665_ Knocked back. 11665_ Slug penetrates Wall. 11665_ Penetrated by Slug. Map ----- +----------------------------------------------------+ | ?????????????????????????????????????????????# | | ?????????????????????????????????????????????# | | ?????????????????????????????????????????????# ! | | ?????????????????????????????????????????????# | | ?????????????????????????????????????????????##+## | | ?????????????????????????????????????????????????? | | ?????????????????????????????????????????????????? | | ?????????????????????????????????????????????????? | | ?????????????????????????????????????????????????? | | ?????????????????????????????????????????????????? | | ?????????????????????????????????????????????????? | | ?????????????????????????????????????????????????? | | ?????????????????????????????????????????????????? | | ?????????????????????????????????????????????????? | | ?????????????????????????????????????????????????? | | ?????????????????????????????????????????????????? | | ?????????????????##############??????????????????? | | ?? ????#######?# ###????????????????? | | ?? ???#"""""#?# * #????????????????? | | ? ####""Y""### #????????????????? | | ? + """" #????????????????? | | ? # """""" #????????????????? | | ? ; """""" #????????????????? | | + """"" ##????????????????? | | # % # #????????????????? | | = ; %@ #????????????????? | | ; ]]] #????????????????? | | "" ; ] #;BB #?????????????? | | ? """ # ]] #?? ??????????? | | ? "" ;;############????? h ????????? | | ""F" BB ;????????????????????? ?????????? | | """" BB #?????????????????????#"""#?????? | | "" #?????????????????????# #?????? | | #?????????????????????# #?????? | | #################?????# #?????? | | = ####### ####### | | #### ################ | | # #?????# ???????????????# | | ?????????###???????????????# | | ???????????????????????????# ###############+# | | ???????????????????????#######+#######????# | | ???????????????????????# #????# | | ???????????????????????# #????#! ! | | ???????????????????????# [ #????# | | ???????????????????????# #????# "" | | ???????????????????????# #????# "" | | ???????????????????????# #????#"""""" | | ???????????????????????# "" "" #????#"""""" | | ???????????????????????# ""T"" #?????? "" | | ???????????????????????# """ #????????" | +----------------------------------------------------+ Best States ------------- Heat Dissipation 109 Energy Generation 45 Energy Capacity 600 Matter Stores 300 Matter Capacity 450 Sight Range 16 Robot Scan Range 15 Terrain Scan Density 10 Jamming Range 14 Armor Coverage 1350 Weapon Cycling 30 Phase Shifting 15 Evasion (%) 75 Targeting Accuracy 16 Melee Accuracy 15 Target Analysis 8 Core Analysis 6 Armor Integrity Analysis 30 Recoil Reduction 6 Matter Filtering 30 Particle Charging 20 Kinecelleration 40 Offensive Hacking 10 Defensive Hacking 12 Item Schematics ----------------- None Robot Schematics ------------------ None Fabricated ------------ Nothing Alien Tech Used ----------------- None Achievements -------------- Left-hand Path Oh No You Don't! Prison Break Revising The Future Revolutionary Research Challenges ------------ None Game ------ Seed ScrapoidGuidanceAccelerator Manual? 0 Play Time 03:36:43 Cumulative 33.4 hours Start 2024.10.10 @ 08:13:29 End 2024.10.10 @ 12:24:06 Sessions 1 Manual Loads 0 Difficulty Rogue Special Mode None Game No. 14 Rogue 14 Adventurer 0 Explorer 0 Win Type - Total 0 Types 0/0/0/0/0/0/0/0/0 Lore% 21 Gallery% 34 Achievement% 40 Wizard Run 0 Options --------- Layout 0 ASCII 1 Keyboard 1 Movement Numpad Keybinds 0 Fullscreen 1 Font 18/SmallcapsGlow Map View 76x50 Zoom Use 0% Tactical HUD 1 Map Filters NONE Filters NONE Steam 1 RUN: 53652662-230e-4cd0-8f4f-c71b653bdf64